[Event "56th Rubinstein Memorial C 2020"]
[Site "Polanica Zdroj"]
[Date "2020.08.19"]
[Round "5.4"]
[White "Komendecki, Antoni"]
[Black "Bartlomowicz, Jakub"]
[Result "1-0"]
[ECO "B38"]
[WhiteElo "1631"]
[BlackElo "1613"]
[Annotator "NA RC"]
[PlyCount "113"]
[EventDate "2020.08.15"]
[EventType "swiss"]
[EventCountry "POL"]
[SourceTitle "playchess.com"]
[Source "ChessBase"]
[SourceQuality "1"]
[TimeControl "40/5400+30:1800+30"]

1. e4 {[%emt 0:00:00]} c5 {[%emt 0:00:00]} 2. Nf3 {[%emt 0:00:00]} Nc6 {[%emt 0:00:08]} 3. d4 {[%emt 0:00:27]} cxd4 {[%emt 0:00:29]} 4. Nxd4 {[%emt 0:00:41]} g6 {[%emt 0:00:53]} 5. c4 {[%emt 0:01:02]} Bg7 {[%emt 0:00:29]} 6. Be3 {[%emt 0:00:14]} Nf6 {[%emt 0:00:41]} 7. Nc3 {[%emt 0:00:37]} O-O {[%emt 0:01:02]} 8. Be2 {[%emt 0:00:58]} d6 {[%emt 0:00:54]} 9. O-O {[%emt 0:00:47]} Bd7 {[%emt 0:00:40]} 10. Rc1 {[%emt 0:02:26]} Nxd4 11. Bxd4 {[%emt 0:00:07]} Bc6 {[%emt 0:01:55]} 12. f3 {[%emt 0:01:12]} Nd7 {[%emt 0:01:46]} 13. Be3 {[%emt 0:00:45]} a5 {[%emt 0:00:36]} 14. b3 {[%emt 0:07:27]} Nc5 {[%emt 0:03:46]} 15. Re1 {[%emt 0:03:11]} e6 {[%emt 0:03:39]} 16. Bf1 {[%emt 0:05:15]} Be5 {[%emt 0:02:05]} 17. Ne2 {[%emt 0:04:10]} Qe7 {[%emt 0:02:22]} 18. Qd2 {[%emt 0:06:14]} Rfd8 {[%emt 0:02:37]} 19. Bf2 {[%emt 0:02:45]} Bf6 {[%emt 0:08:54]} 20. Ng3 {[%emt 0:04:34]} Bg5 {[%emt 0:02:00]} 21. Be3 {[%emt 0:02:45]} Bf6 {[%emt 0:02:37]} 22. Rc2 {[%emt 0:07:02]} Be5 {[%emt 0:07:48]} 23. Bf2 {[%emt 0:01:42]} Qh4 {[%emt 0:04:34]} 24. Be2 {[%emt 0:03:02]} Bf4 {[%emt 0:02:46]} 25. Qd1 {[%emt 0:00:56]} Rd7 {[%emt 0:03:59]} 26. Nf1 {[%emt 0:01:14]} Qe7 {[%emt 0:00:18]} 27. Be3 {[%emt 0:09:09]} Be5 {[%emt 0:01:34]} 28. Bd4 {[%emt 0:02:12]} Na6 {[%emt 0:02:16]} 29. Rd2 {[%emt 0:07:05]} a4 {[%emt 0:03:44]} 30. Bxe5 {[%emt 0:04:05]} dxe5 {[%emt 0:00:06]} 31. Rxd7 {[%emt 0:00:35]} Bxd7 {[%emt 0:00:04]} 32. Ne3 {[%emt 0:00:38]} axb3 {[%emt 0:00:43]} 33. axb3 {[%emt 0:00:01]} Rd8 {[%emt 0:00:38]} 34. Ng4 {[%emt 0:00:59]} Bc6 {[%emt 0:01:21]} 35. Qa1 {[%emt 0:01:43]} Qc5+ {[%emt 0:00:33]} 36. Kh1 {[%emt 0:00:15]} Rd4 {[%emt 0:00:08]} 37. Qc1 {[%emt 0:01:10]} f5 {[%emt 0:01:21]} 38. exf5 {[%emt 0:04:38]} exf5 {[%emt 0:00:08]} 39. Nf2 {[%emt 0:03:14]} Nb4 {[%emt 0:01:13]} 40. Bf1 {[%emt 0:00:00]} Kg7 {[%emt 0:00:00]} 41. Qe3 {[%emt 0:10:16]} e4 {[%emt 0:09:06]} 42. Qc3 {[%emt 0:10:55]} exf3 {[%emt 0:01:21]} 43. gxf3 {[%emt 0:05:47]} Nd5 {[%emt 0:00:38]} 44. Qb2 {[%emt 0:01:26]} Nf6 {[%emt 0:00:06]} 45. Bg2 {[%emt 0:00:24]} Qd6 {[%emt 0:01:11]} 46. Qe2 {[%emt 0:00:46]} Rd2 {[%emt 0:01:04]} 47. Qf1 {[%emt 0:01:36]} Rb2 {[%emt 0:02:03]} 48. Rb1 {[%emt 0:02:06]} Qd2 {[%emt 0:00:52]} 49. Rxb2 {[%emt 0:00:11]} Qxb2 {[%emt 0:00:05]} 50. Qe1 {[%emt 0:02:34]} Qxb3 {[%emt 0:01:26]} 51. Qe7+ {[%emt 0:00:44]} Kh6 {[%emt 0:00:24]} 52. h4 {[%emt 0:00:08]} Nh5 {[%emt 0:01:33]} 53. Qf8+ {[%emt 0:03:00]} Ng7 {[%emt 0:00:04]} 54. Ng4+ {[%emt 0:01:11]} Kh5 {[%emt 0:00:30]} 55. Qxg7 {[%emt 0:01:39]} Qd1+ {[%emt 0:00:09]} 56. Kh2 {[%emt 0:00:12]} Qd6+ {[%emt 0:00:03]} 57. Kh3 {[%emt 0:00:23]} 1-0

[Event "56th Rubinstein Memorial C 2020"]
[Site "Polanica Zdroj"]
[Date "2020.08.19"]
[Round "5.5"]
[White "Demski, Michal"]
[Black "Kejna, Piotr"]
[Result "1-0"]
[ECO "C00"]
[WhiteElo "1617"]
[BlackElo "1767"]
[Annotator "NA"]
[PlyCount "73"]
[EventDate "2020.08.15"]
[EventType "swiss"]
[EventCountry "POL"]
[SourceTitle "playchess.com"]
[Source "ChessBase"]
[SourceQuality "1"]
[TimeControl "40/5400+30:1800+30"]

1. e4 {[%emt 0:00:00]} e6 {[%emt 0:00:00]} 2. d3 {[%emt 0:00:00]} g6 {[%emt 0:01:39]} 3. g3 {[%emt 0:00:27]} Bg7 {[%emt 0:00:31]} 4. Bg2 {[%emt 0:00:16]} Ne7 {[%emt 0:00:47]} 5. Nf3 {[%emt 0:00:30]} O-O {[%emt 0:01:17]} 6. O-O {[%emt 0:01:08]} c5 {[%emt 0:01:30]} 7. Re1 {[%emt 0:02:16]} d5 {[%emt 0:02:27]} 8. e5 {[%emt 0:00:20]} Nbc6 {[%emt 0:00:37]} 9. Nbd2 {[%emt 0:05:46]} Qc7 {[%emt 0:02:54]} 10. Qe2 {[%emt 0:00:41]} b6 {[%emt 0:04:18]} 11. Nf1 {[%emt 0:02:49]} Ba6 {[%emt 0:05:16]} 12. Bf4 {[%emt 0:12:35]} Qb7 {[%emt 0:06:04]} 13. c3 {[%emt 0:09:19]} b5 {[%emt 0:03:24]} 14. b3 {[%emt 0:09:06]} c4 {[%emt 0:03:19]} 15. dxc4 {[%emt 0:04:12]} bxc4 {[%emt 0:03:41]} 16. b4 {[%emt 0:01:48]} Qc7 {[%emt 0:01:26]} 17. a4 {[%emt 0:02:17]} Bb7 {[%emt 0:00:14]} 18. Ne3 {[%emt 0:07:32]} Rfd8 {[%emt 0:04:56]} 19. Ng4 {[%emt 0:02:48]} Nf5 {[%emt 0:03:51]} 20. Nf6+ {[%emt 0:02:02]} Bxf6 {[%emt 0:01:17]} 21. exf6 {[%emt 0:00:06]} Qd7 {[%emt 0:01:52]} 22. h4 {[%emt 0:07:06]} Nd6 {[%emt 0:03:25]} 23. Bxd6 {[%emt 0:01:58]} Qxd6 {[%emt 0:00:02]} 24. b5 {[%emt 0:02:33]} Na5 {[%emt 0:03:31]} 25. Ne5 {[%emt 0:02:52]} Rac8 {[%emt 0:15:44]} 26. Rad1 {[%emt 0:03:01]} a6 {[%emt 0:02:04]} 27. h5 {[%emt 0:01:35]} Qf8 {[%emt 0:02:56]} 28. Qg4 {[%emt 0:03:45]} Kh8 {[%emt 0:12:45]} 29. hxg6 {[%emt 0:01:29]} hxg6 {[%emt 0:01:36]} 30. Qh4+ {[%emt 0:00:48]} Kg8 {[%emt 0:00:08]} 31. Rd4 {[%emt 0:00:45]} Rd6 {[%emt 0:04:08]} 32. Rg4 {[%emt 0:00:56]} Qe8 {[%emt 0:00:49]} 33. Qh6 {[%emt 0:00:25]} Qf8 {[%emt 0:00:15]} 34. Rxg6+ {[%emt 0:00:32]} fxg6 {[%emt 0:00:09]} 35. Qxg6+ {[%emt 0:00:03]} Kh8 {[%emt 0:00:07]} 36. Nf7+ {[%emt 0:00:07]} Qxf7 {[%emt 0:00:08]} 37. Qxf7 {[%emt 0:00:03]} 1-0

[Event "56th Rubinstein Memorial C 2020"]
[Site "Polanica Zdroj"]
[Date "2020.08.19"]
[Round "5.6"]
[White "Adamczewski, Maciej"]
[Black "Walkusz, Witoslaw"]
[Result "1-0"]
[ECO "A85"]
[WhiteElo "2045"]
[BlackElo "2092"]
[Annotator "RC"]
[PlyCount "229"]
[EventDate "2020.08.15"]
[EventType "swiss"]
[EventCountry "POL"]
[SourceTitle "playchess.com"]
[Source "ChessBase"]
[SourceQuality "1"]
[TimeControl "40/5400+30:1800+30"]

1. d4 f5 2. c4 Nf6 3. Nc3 g6 4. h4 c5 5. d5 d6 6. Nh3 e5 7. dxe6 Bxe6 8. Nf4 Bxc4 9. Qa4+ b5 10. Nxb5 Bxb5 11. Qxb5+ Qd7 12. e3 Qxb5 13. Bxb5+ Nbd7 14. b3 Rb8 15. a4 Ke7 16. Bb2 Bg7 17. Rd1 Rhd8 18. Ke2 Ne5 19. Nd5+ Nxd5 20. Rxd5 Bf6 21. Rhd1 Ng4 22. Ba3 h5 23. g3 Bc3 24. R5d3 Bb4 25. Bb2 Ba5 26. f3 Nh6 27. Bc4 Rb6 28. Be5 Rc6 29. Bf4 Nf7 30. Bxf7 Kxf7 31. Rxd6 Rdxd6 32. Rxd6 Rxd6 33. Bxd6 Bb4 34. Bb8 a6 35. Kd3 Ke6 36. Kc4 Ba3 37. Bc7 Kd7 38. Bf4 Kc6 39. e4 fxe4 40. fxe4 Bb2 41. Be3 Be5 42. Bf4 Bf6 43. b4 cxb4 44. Kxb4 Bd4 45. Kc4 Bf2 46. Be5 Be1 47. Bb8 Kb7 48. Bf4 Kc6 49. Kd4 Kd7 50. Kd5 Bc3 51. e5 Be1 52. e6+ Ke7 53. Bg5+ Ke8 54. Ke5 Bc3+ 55. Kd6 Bb4+ 56. Kc6 Be1 57. Bf4 Ke7 58. Kd5 a5 59. Bd6+ Ke8 60. Kc4 Kd8 61. Kb5 Ke8 62. Kc6 Kd8 63. Kd5 Ke8 64. Ke4 Kd8 65. Kd3 Ke8 66. Ke2 Bc3 67. Bc5 Bf6 68. Kd3 g5 69. hxg5 Bxg5 70. Ke4 h4 71. g4 h3 72. Bd6 Bh4 73. Kf5 Be7 74. Bh2 Bc5 75. Kg5 Ke7 76. Kh4 Kxe6 77. Kxh3 Kf6 78. Bc7 Bb4 79. Kg3 Bd2 80. Kf3 Ke6 81. Ke4 Kd7 82. Bf4 Bc3 83. Kd5 Bf6 84. Bd2 Bd8 85. Kc5 Kc8 86. Kb5 Kb7 87. Bxa5 Bg5 88. Bc3 Ka7 89. Kc6 Ka6 90. Kd6 Kb6 91. Ke6 Kc5 92. Bf6 Bd2 93. Bd8 Kb4 94. a5 Kb5 95. Kd7 Ka6 96. Kc6 Ka7 97. Kb5 Kb7 98. a6+ Ka7 99. Bb6+ Kb8 100. Kc6 Ka8 101. Kd6 Bg5 102. Ke5 Bd2 103. Ke4 Bg5 104. Be3 Be7 105. Kf5 Bh4 106. Bd4 Bd8 107. Bf6 Ba5 108. g5 Bd2 109. g6 Bh6 110. Bd4 Kb8 111. Kf6 Kc7 112. Kf7 Kc6 113. Kg8 Kc7 114. Kh7 Bf8 115. Bc5 1-0

[Event "56th Rubinstein Memorial C 2020"]
[Site "Polanica Zdroj"]
[Date "2020.08.19"]
[Round "5.8"]
[White "Kawalko, Adam"]
[Black "Barwinska, Ewa"]
[Result "*"]
[ECO "D35"]
[WhiteElo "1950"]
[BlackElo "1763"]
[Annotator "ChessBase"]
[PlyCount "25"]
[EventDate "2020.08.15"]
[EventType "swiss"]
[EventCountry "POL"]
[SourceTitle "playchess.com"]
[Source "ChessBase"]
[SourceQuality "1"]
[TimeControl "40/5400+30:1800+30"]

1. d4 {[%emt 0:00:00]} d5 {[%emt 0:00:00]} 2. c4 {[%emt 0:00:00]} e6 {[%emt 0:00:00]} 3. Nc3 {[%emt 0:00:33]} Nf6 4. cxd5 {[%emt 0:00:24]} exd5 {[%emt 0:00:27]} 5. Bg5 {[%emt 0:00:21]} Nbd7 {[%emt 0:00:41]} 6. e3 {[%emt 0:00:46]} Be7 {[%emt 0:00:32]} 7. Bd3 {[%emt 0:01:22]} c6 {[%emt 0:00:25]} 8. Nge2 {[%emt 0:02:13]} Nh5 {[%emt 0:00:57]} 9. Bxe7 {[%emt 0:01:57]} Qxe7 {[%emt 0:00:25]} 10. Qc2 {[%emt 0:01:04]} g6 {[%emt 0:01:13]} 11. O-O {[%emt 0:04:30]} O-O {[%emt 0:02:33]} 12. a3 {[%emt 0:02:02]} Ng7 {[%emt 0:00:30]} 13. b4 {[%emt 0:02:27]} *

[Event "56th Rubinstein Memorial C 2020"]
[Site "Polanica Zdroj"]
[Date "2020.08.19"]
[Round "5.8"]
[White "Kawalko, Adam"]
[Black "Barwinska, Ewa"]
[Result "1/2-1/2"]
[ECO "D35"]
[WhiteElo "1950"]
[BlackElo "1763"]
[Annotator "ChessBase"]
[PlyCount "85"]
[EventDate "2020.08.15"]
[EventType "swiss"]
[EventCountry "POL"]
[SourceTitle "playchess.com"]
[Source "ChessBase"]
[SourceQuality "1"]
[TimeControl "40/5400+30:1800+30"]

1. d4 {[%emt 0:00:00]} d5 {[%emt 0:00:00]} 2. c4 {[%emt 0:00:00]} e6 {[%emt 0:00:00]} 3. Nc3 {[%emt 0:00:33]} Nf6 4. cxd5 {[%emt 0:00:24]} exd5 {[%emt 0:00:27]} 5. Bg5 {[%emt 0:00:21]} Nbd7 {[%emt 0:00:41]} 6. e3 {[%emt 0:00:46]} Be7 {[%emt 0:00:32]} 7. Bd3 {[%emt 0:01:22]} c6 {[%emt 0:00:25]} 8. Nge2 {[%emt 0:02:13]} Nh5 {[%emt 0:00:57]} 9. Bxe7 {[%emt 0:01:57]} Qxe7 {[%emt 0:00:25]} 10. Qc2 {[%emt 0:01:04]} g6 {[%emt 0:01:13]} 11. O-O {[%emt 0:04:30]} O-O {[%emt 0:02:33]} 12. a3 {[%emt 0:02:02]} Ndf6 {[%emt 0:00:30]} 13. b4 {[%emt 0:02:27]} Ng7 {[%emt 0:10:12]} 14. Qb3 {[%emt 0:04:07]} a6 {[%emt 0:01:20]} 15. a4 {[%emt 0:03:57]} Bf5 {[%emt 0:00:30]} 16. Bxf5 {[%emt 0:02:16]} Nxf5 {[%emt 0:00:30]} 17. b5 {[%emt 0:01:44]} axb5 {[%emt 0:01:34]} 18. axb5 {[%emt 0:00:37]} Nd6 {[%emt 0:04:51]} 19. Qb4 {[%emt 0:03:14]} Qc7 {[%emt 0:07:17]} 20. Rfc1 {[%emt 0:04:54]} Nde4 {[%emt 0:04:39]} 21. bxc6 {[%emt 0:05:20]} bxc6 {[%emt 0:01:34]} 22. Nxe4 {[%emt 0:02:12]} Nxe4 {[%emt 0:00:25]} 23. Nc3 {[%emt 0:01:13]} Nxc3 {[%emt 0:03:41]} 24. Qxc3 {[%emt 0:00:39]} Rxa1 {[%emt 0:00:13]} 25. Qxa1 {[%emt 0:03:33]} Qb7 {[%emt 0:02:43]} 26. g3 {[%emt 0:01:01]} Ra8 {[%emt 0:03:30]} 27. Qb1 {[%emt 0:05:21]} Qxb1 {[%emt 0:05:52]} 28. Rxb1 {[%emt 0:00:01]} Rc8 {[%emt 0:00:57]} 29. f3 {[%emt 0:02:29]} f5 {[%emt 0:06:25]} 30. Kf2 {[%emt 0:02:52]} Rc7 {[%emt 0:04:02]} 31. e4 fxe4 {[%emt 0:01:41]} 32. fxe4 {[%emt 0:03:32]} dxe4 {[%emt 0:04:04]} 33. Ke3 {[%emt 0:00:08]} Kf7 {[%emt 0:01:18]} 34. Kxe4 {[%emt 0:01:09]} Re7+ {[%emt 0:03:47]} 35. Kf4 {[%emt 0:01:18]} Kf6 {[%emt 0:03:07]} 36. Rb6 {[%emt 0:06:16]} Re6 {[%emt 0:00:27]} 37. g4 {[%emt 0:00:18]} g5+ {[%emt 0:02:27]} 38. Kf3 Kf7 {[%emt 0:00:40]} 39. Ra6 {[%emt 0:02:54]} Kf6 40. h3 {[%emt 0:00:00]} h6 {[%emt 0:00:00]} 41. Ra7 {[%emt 0:03:36]} Kg6 {[%emt 0:10:39]} 42. Ra6 {[%emt 0:00:21]} Kf6 {[%emt 0:01:03]} 43. Ra7 {[%emt 0:00:30]} 1/2-1/2

[Event "56th Rubinstein Memorial C 2020"]
[Site "Polanica Zdroj"]
[Date "2020.08.19"]
[Round "5.9"]
[White "Lewandrowski, Tomasz"]
[Black "Plichta, Krzysztof"]
[Result "1/2-1/2"]
[ECO "B13"]
[WhiteElo "1879"]
[BlackElo "1605"]
[Annotator "NA"]
[PlyCount "130"]
[EventDate "2020.08.15"]
[EventType "swiss"]
[EventCountry "POL"]
[SourceTitle "playchess.com"]
[Source "ChessBase"]
[SourceQuality "1"]
[TimeControl "40/5400+30:1800+30"]

1. e4 {[%emt 0:00:00]} c6 {[%emt 0:00:00]} 2. d4 {[%emt 0:00:00]} d5 {[%emt 0:00:00]} 3. exd5 {[%emt 0:00:00]} cxd5 {[%emt 0:00:00]} 4. Bd3 {[%emt 0:00:11]} Nc6 {[%emt 0:00:05]} 5. c3 {[%emt 0:00:08]} Qc7 {[%emt 0:00:12]} 6. Ne2 {[%emt 0:01:14]} Bg4 {[%emt 0:01:39]} 7. Qb3 {[%emt 0:06:57] Recently 7.0-0 got a lot of attention. B13: Caro-Kann: Exchange Variation and Panov-Botvinnik Attack.} Bxe2 {[%emt 0:02:13]} 8. Bxe2 {[%emt 0:00:40]} Nxd4 {[%emt 0:01:45]} 9. Qxd5 {[%emt 0:02:47]} Nxe2 {[%emt 0:00:17]} 10. Qb5+ {[%emt 0:00:28]} Qd7 {[%emt 0:00:46]} 11. Qxd7+ {[%emt 0:00:25]} Kxd7 {[%emt 0:00:15]} 12. Kxe2 {[%emt 0:00:03] [#]} e6 $146 {[%emt 0:02:39]} ({Predecessor:} 12... e5 13. Rd1+ Kc7 14. Be3 f5 15. f3 Nf6 16. Nd2 b6 17. Nc4 Re8 18. a4 f4 {½-½ (45) Vega Gutierrez,S-Vilar Lopez,M (2135) Empuriabrava 1997}) 13. Nd2 {[%emt 0:00:49]} Bd6 {[%emt 0:02:29]} 14. Nc4 {[%emt 0:01:34]} Rc8 {[%emt 0:01:43]} 15. Nxd6 {[%emt 0:00:33]} Kxd6 {[%emt 0:00:03]} 16. Be3 {[%emt 0:00:25]} b6 {[%emt 0:00:28]} 17. Rhd1+ {[%emt 0:00:52]} Ke7 {[%emt 0:00:43]} 18. a4 {[%emt 0:00:24]} Nf6 {[%emt 0:04:05]} 19. a5 {[%emt 0:00:31]} Nd5 {[%emt 0:00:21]} 20. axb6 {[%emt 0:00:40]} axb6 {[%emt 0:00:16]} 21. Ra7+ {[%emt 0:06:24]} Kf6 {[%emt 0:01:35]} 22. Rda1 {[%emt 0:00:26]} b5 {[%emt 0:02:28]} 23. Rb7 {[%emt 0:02:56]} b4 {[%emt 0:00:34]} 24. Bd4+ {[%emt 0:01:38]} e5 $16 {[%emt 0:02:11]} (24... Kg6 $14) 25. Ra6+ {[%emt 0:00:14]} Kg5 {[%emt 0:00:21]} 26. Ra5 {[%emt 0:18:30]} exd4 {[%emt 0:12:32]} 27. Rxd5+ {[%emt 0:00:12]} Kg6 {[%emt 0:03:50]} 28. cxb4 {[%emt 0:01:18]} Rc2+ {[%emt 0:03:33]} 29. Kf3 {[%emt 0:00:20]} Re8 {[%emt 0:03:57]} 30. Rd6+ {[%emt 0:05:01]} Re6 {[%emt 0:01:15]} 31. Rbd7 {[%emt 0:01:50]} Rxb2 {[%emt 0:03:23]} 32. Rxe6+ {[%emt 0:00:21]} fxe6 {[%emt 0:00:06]} 33. Rxd4 {[%emt 0:00:08]} Kf5 {[%emt 0:01:57]} 34. g3 {[%emt 0:05:24]} e5 {[%emt 0:01:07]} 35. Rc4 {[%emt 0:00:45]} Rb3+ {[%emt 0:02:09]} 36. Kg2 {[%emt 0:00:29]} h5 {[%emt 0:04:06]} 37. h3 {[%emt 0:03:50]} g5 {[%emt 0:03:51]} 38. g4+ {[%emt 0:02:50]} hxg4 {[%emt 0:01:30]} 39. hxg4+ {[%emt 0:00:01]} Ke6 {[%emt 0:01:11]} 40. Rc6+ {[%emt 0:00:00]} Kf7 {[%emt 0:00:00]} 41. Rb6 {[%emt 0:01:04]} e4 {[%emt 0:02:50]} 42. Rb8 {[%emt 0:02:32]} e3 {[%emt 0:04:54]} 43. fxe3 {[%emt 0:01:15]} Rxe3 {[%emt 0:00:10]} 44. b5 {[%emt 0:01:33]} Rb3 {[%emt 0:05:01]} 45. b6 {[%emt 0:00:13]} Kg7 {[%emt 0:00:32]} 46. b7 {[%emt 0:00:32]} Kh7 {[%emt 0:00:33]} 47. Kf2 {[%emt 0:00:20]} Kg7 {[%emt 0:00:13]} 48. Ke2 {[%emt 0:00:08]} Rb2+ {[%emt 0:01:39]} 49. Kd3 {[%emt 0:01:10]} Rb3+ {[%emt 0:00:31]} 50. Kc4 {[%emt 0:03:57]} Rb1 {[%emt 0:00:28]} 51. Kc5 {[%emt 0:00:42]} Rc1+ {[%emt 0:01:26]} 52. Kd6 {[%emt 0:00:50]} Rd1+ {[%emt 0:01:21]} 53. Ke6 {[%emt 0:00:43]} Rb1 {[%emt 0:00:47]} 54. Rd8 {[%emt 0:07:09]} Rxb7 {[%emt 0:00:14]} 55. Rd7+ {[%emt 0:00:07]} Rxd7 {[%emt 0:00:04]} 56. Kxd7 {[%emt 0:00:05]} Kf7 {[%emt 0:00:12]} 57. Kd6 {[%emt 0:00:12]} Kf6 {[%emt 0:00:09]} 58. Kd5 {[%emt 0:00:07]} Kf7 {[%emt 0:00:15]} 59. Ke5 {[%emt 0:00:10]} Kg8 {[%emt 0:00:43]} 60. Kf5 {[%emt 0:00:42]} Kh8 {[%emt 0:00:14]} 61. Kxg5 {[%emt 0:01:00]} Kg7 {[%emt 0:00:06]} 62. Kf5 {[%emt 0:00:27]} Kf7 {[%emt 0:00:12]} 63. g5 {[%emt 0:00:11]} Kg7 {[%emt 0:00:10]} 64. g6 {[%emt 0:00:07]} Kg8 {[%emt 0:00:17]} 65. Kg5 {[%emt 0:01:04]} Kg7 {[%emt 0:00:13]} 1/2-1/2

[Event "56th Rubinstein Memorial C 2020"]
[Site "Polanica Zdroj"]
[Date "2020.08.19"]
[Round "5.10"]
[White "Grot, Blazej"]
[Black "Rudecki, Bartosz"]
[Result "1/2-1/2"]
[ECO "C43"]
[WhiteElo "1768"]
[BlackElo "1831"]
[Annotator "NA"]
[PlyCount "26"]
[EventDate "2020.08.15"]
[EventType "swiss"]
[EventCountry "POL"]
[SourceTitle "playchess.com"]
[Source "ChessBase"]
[SourceQuality "1"]
[TimeControl "40/5400+30:1800+30"]

1. e4 {[%emt 0:00:00]} e5 {[%emt 0:09:29]} 2. Nf3 {[%emt 0:00:00]} Nf6 {[%emt 0:00:05]} 3. d4 {[%emt 0:00:00]} Nxe4 {[%emt 0:00:23]} 4. Bd3 {[%emt 0:00:21]} d5 {[%emt 0:00:05]} 5. Nxe5 {[%emt 0:00:20]} Nd7 {[%emt 0:00:40]} 6. Nxd7 {[%emt 0:05:39]} Bxd7 {[%emt 0:00:28]} 7. O-O {[%emt 0:01:00]} Bd6 {[%emt 0:01:39]} 8. Nd2 {[%emt 0:05:38]} Nxd2 {[%emt 0:01:28]} 9. Bxd2 {[%emt 0:01:01]} O-O {[%emt 0:04:05]} 10. Qh5 {[%emt 0:01:57]} f5 {[%emt 0:01:00]} 11. Rfe1 {[%emt 0:01:32]} Qf6 {[%emt 0:01:33]} 12. c3 {[%emt 0:03:32]} Rae8 {[%emt 0:04:54]} 13. h3 {[%emt 0:00:51]} g6 {[%emt 0:02:34]} 1/2-1/2

[Event "56th Rubinstein Memorial C 2020"]
[Site "Polanica Zdroj"]
[Date "2020.08.19"]
[Round "5.11"]
[White "Maslo, Slawomir"]
[Black "Borowski, Przemyslaw"]
[Result "0-1"]
[ECO "A58"]
[WhiteElo "1740"]
[BlackElo "1790"]
[Annotator "NA RC"]
[PlyCount "88"]
[EventDate "2020.08.15"]
[EventType "swiss"]
[EventCountry "POL"]
[SourceTitle "playchess.com"]
[Source "ChessBase"]
[SourceQuality "1"]
[TimeControl "40/5400+30:1800+30"]

1. d4 c5 2. d5 Nf6 3. c4 b5 4. cxb5 a6 5. bxa6 g6 6. a7 Rxa7 7. Nc3 Ba6 8. e4 Bxf1 9. Kxf1 d6 10. g3 Bg7 11. Kg2 O-O 12. Nf3 Qb6 13. Re1 Na6 14. a4 Nb4 15. Nb5 Rb7 16. Nd2 Qa6 17. Ra3 Ne8 18. Nb1 Nc7 19. N1c3 Nxb5 20. Nxb5 c4 21. Re2 Nd3 22. Rc2 Rxb5 23. axb5 Qxb5 24. Qd2 f5 25. Ra5 Qb6 26. f4 Qd4 27. Qe2 g5 28. Ra4 gxf4 29. gxf4 fxe4 30. Be3 Qxd5 31. Raxc4 Rxf4 32. Kh1 Rf8 33. Rc8 Qe6 34. Rxf8+ Kxf8 35. Qh5 Qg6 36. Rc8+ Kf7 37. Qd5+ Qe6 38. Qh5+ Qg6 39. Qh4 Qf5 40. Kg1 Qxc8 41. Qxe4 Nxb2 42. Qxh7 Qg4+ 43. Kf1 Qf3+ 44. Bf2 Nd1 0-1

[Event "56th Rubinstein Memorial C 2020"]
[Site "Polanica Zdroj"]
[Date "2020.08.19"]
[Round "5.12"]
[White "Raczek, Krzysztof"]
[Black "Lambrecht, Tomasz"]
[Result "1/2-1/2"]
[ECO "B13"]
[WhiteElo "1712"]
[BlackElo "1750"]
[Annotator "NA"]
[PlyCount "66"]
[EventDate "2020.08.15"]
[EventType "swiss"]
[EventCountry "POL"]
[SourceTitle "playchess.com"]
[Source "ChessBase"]
[SourceQuality "1"]
[TimeControl "40/5400+30:1800+30"]

1. e4 {[%emt 0:00:00]} c6 {[%emt 0:00:00]} 2. d4 {[%emt 0:00:00]} d5 {[%emt 0:00:00]} 3. exd5 {[%emt 0:00:00]} cxd5 {[%emt 0:00:00]} 4. Bd3 {[%emt 0:00:08]} Nc6 {[%emt 0:00:00]} 5. c3 {[%emt 0:00:05]} Nf6 {[%emt 0:00:00]} 6. h3 {[%emt 0:00:06]} g6 {[%emt 0:00:00]} 7. Nf3 {[%emt 0:00:20]} Bg7 {[%emt 0:02:20]} 8. O-O {[%emt 0:00:17]} Qc7 {[%emt 0:00:39]} 9. Re1 {[%emt 0:02:39]} Bf5 {[%emt 0:01:53]} 10. Bxf5 {[%emt 0:03:19]} gxf5 {[%emt 0:00:02]} 11. Nh4 {[%emt 0:00:01]} e6 {[%emt 0:06:49]} 12. Nxf5 {[%emt 0:00:11]} Bf8 {[%emt 0:00:00]} 13. Qf3 {[%emt 0:02:38]} Ne4 {[%emt 0:01:27]} 14. Ng3 {[%emt 0:03:38]} f5 {[%emt 0:04:27]} 15. Qh5+ {[%emt 0:04:29]} Kd7 {[%emt 0:03:04]} 16. Nd2 {[%emt 0:14:59]} Be7 {[%emt 0:07:39]} 17. Ngxe4 {[%emt 0:07:11]} fxe4 {[%emt 0:00:16]} 18. Qe2 {[%emt 0:03:09]} Rhg8 {[%emt 0:13:17]} 19. f3 {[%emt 0:12:00]} Rg6 {[%emt 0:04:37]} 20. fxe4 {[%emt 0:01:20]} Rag8 {[%emt 0:00:11]} 21. e5 {[%emt 0:00:41]} Bh4 {[%emt 0:05:41]} 22. Rf1 {[%emt 0:01:22]} Rxg2+ {[%emt 0:00:35]} 23. Qxg2 {[%emt 0:00:10]} Rxg2+ {[%emt 0:02:44]} 24. Kxg2 {[%emt 0:02:24]} Qd8 {[%emt 0:00:38]} 25. Rf4 {[%emt 0:02:11]} Bg5 {[%emt 0:00:26]} 26. Rg4 {[%emt 0:00:55]} h5 {[%emt 0:02:31]} 27. Rg3 {[%emt 0:00:52]} Bh4 {[%emt 0:04:59]} 28. Rg7+ {[%emt 0:00:23]} Ne7 {[%emt 0:00:16]} 29. Nf3 {[%emt 0:00:20]} Qh8 {[%emt 0:01:07]} 30. Rxe7+ {[%emt 0:06:00]} Bxe7 {[%emt 0:00:04]} 31. Be3 {[%emt 0:00:53]} Qh7 {[%emt 0:02:20]} 32. Rf1 {[%emt 0:01:05]} h4 {[%emt 0:25:29]} 33. Nh2 {[%emt 0:13:46]} Qe4+ {[%emt 0:03:55]} 1/2-1/2